[Event "Polish Youth 1st League 2022"]
[Site "Lublin"]
[Date "2022.06.26"]
[Round "2.13"]
[White "Klim, Filip"]
[Black "Szlosarczyk, Hubert"]
[Result "1/2-1/2"]
[ECO "C10"]
[WhiteElo "2015"]
[BlackElo "1650"]
[Annotator "NA RC"]
[PlyCount "92"]
[EventDate "2022.06.24"]
[EventType "team-tourn"]
[EventCountry "POL"]
[SourceTitle "playchess.com"]
[Source "ChessBase"]
[SourceQuality "1"]
[TimeControl "40/5400+30:1800+30"]

1. e4 e6 {[%emt 0:00:36]} 2. d4 {[%emt 0:00:07]} d5 {[%emt 0:01:04]} 3. Nc3 {[%emt 0:00:26]} dxe4 {[%emt 0:01:22]} 4. Nxe4 {[%emt 0:00:56]} Nd7 {[%emt 0:01:45]} 5. Nf3 {[%emt 0:00:43]} Ngf6 6. Ng3 c5 {[%emt 0:02:00]} 7. Be2 {[%emt 0:07:01]} b6 {[%emt 0:03:11]} 8. O-O {[%emt 0:03:32]} Bb7 {[%emt 0:04:00]} 9. c4 {[%emt 0:09:35]} Bd6 {[%emt 0:05:55]} 10. d5 {[%emt 0:11:29]} Bxg3 {[%emt 0:08:32]} 11. dxe6 {[%emt 0:02:13]} Bxh2+ {[%emt 0:02:32]} 12. Kxh2 {[%emt 0:04:31]} Qc7+ {[%emt 0:04:55]} 13. Kg1 {[%emt 0:02:29]} fxe6 {[%emt 0:01:49]} 14. Ng5 {[%emt 0:01:04]} Nf8 {[%emt 0:03:45]} 15. Bf3 {[%emt 0:10:01]} h6 {[%emt 0:03:21]} 16. Nh3 {[%emt 0:12:33]} Rd8 {[%emt 0:09:28]} 17. Qa4+ {[%emt 0:02:56]} Qd7 {[%emt 0:01:31]} 18. Qb3 {[%emt 0:04:22]} Bxf3 {[%emt 0:08:33]} 19. Qxf3 {[%emt 0:00:11]} Ng6 {[%emt 0:02:27]} 20. Re1 {[%emt 0:03:54]} O-O {[%emt 0:04:27]} 21. Nf4 {[%emt 0:00:40]} Nxf4 {[%emt 0:03:22]} 22. Qxf4 {[%emt 0:03:13]} Qd4 {[%emt 0:09:08]} 23. Qxd4 {[%emt 0:06:55]} Rxd4 {[%emt 0:00:09]} 24. b3 {[%emt 0:00:45]} Kf7 {[%emt 0:01:41]} 25. Be3 {[%emt 0:02:59]} Rd3 {[%emt 0:00:27]} 26. f3 {[%emt 0:00:40]} Rfd8 {[%emt 0:00:37]} 27. Kf2 {[%emt 0:01:00]} a5 {[%emt 0:02:48]} 28. Ke2 {[%emt 0:01:04]} e5 {[%emt 0:01:31]} 29. Rad1 {[%emt 0:01:17]} Rxd1 {[%emt 0:00:05]} 30. Rxd1 {[%emt 0:00:01]} Rxd1 {[%emt 0:00:01]} 31. Kxd1 {[%emt 0:00:01]} Ke6 {[%emt 0:00:36]} 32. a3 {[%emt 0:02:42]} Nd7 {[%emt 0:02:00]} 33. Kd2 {[%emt 0:01:04]} Kf5 {[%emt 0:01:42]} 34. g4+ {[%emt 0:01:03]} Ke6 {[%emt 0:00:11]} 35. Kd3 {[%emt 0:00:58]} Nf6 {[%emt 0:01:56]} 36. b4 {[%emt 0:01:58]} axb4 {[%emt 0:01:00]} 37. axb4 {[%emt 0:00:01]} Kd6 {[%emt 0:00:58]} 38. bxc5+ {[%emt 0:01:00]} bxc5 {[%emt 0:00:04]} 39. g5 {[%emt 0:00:29]} hxg5 {[%emt 0:00:26]} 40. Bxg5 {[%emt 0:00:00]} e4+ {[%emt 0:00:00]} 41. fxe4 {[%emt 0:02:04]} Ke5 {[%emt 0:04:02]} 42. Bc1 {[%emt 0:02:04]} Nxe4 {[%emt 0:00:48]} 43. Bb2+ {[%emt 0:00:24]} Kf5 {[%emt 0:00:05]} 44. Bxg7 {[%emt 0:00:10]} Nd6 {[%emt 0:00:07]} 45. Bf8 {[%emt 0:00:24]} Nxc4 {[%emt 0:00:04]} 46. Kxc4 {[%emt 0:00:04]} Ke5 1/2-1/2

[Event "Polish Youth 1st League 2022"]
[Site "Lublin"]
[Date "2022.06.26"]
[Round "2.14"]
[White "Kozlowski, Franciszek"]
[Black "Bartodziej, Bartosz"]
[Result "1/2-1/2"]
[ECO "A05"]
[WhiteElo "1607"]
[BlackElo "1902"]
[Annotator "RC"]
[PlyCount "121"]
[EventDate "2022.06.24"]
[EventType "team-tourn"]
[EventCountry "POL"]
[SourceTitle "playchess.com"]
[Source "ChessBase"]
[SourceQuality "1"]
[TimeControl "40/5400+30:1800+30"]

1. Nf3 {[%emt 0:00:12]} Nf6 {[%emt 0:00:01]} 2. c4 {[%emt 0:00:31]} g6 {[%emt 0:00:59]} 3. Nc3 {[%emt 0:00:39]} d5 4. cxd5 {[%emt 0:00:30]} Nxd5 {[%emt 0:00:32]} 5. h4 {[%emt 0:00:09]} h6 {[%emt 0:01:36]} 6. e4 {[%emt 0:00:33]} Nxc3 {[%emt 0:00:46]} 7. dxc3 {[%emt 0:00:55]} Qxd1+ {[%emt 0:00:48]} 8. Kxd1 {[%emt 0:03:50]} Nc6 {[%emt 0:06:18]} 9. Kc2 {[%emt 0:02:46]} Bg4 {[%emt 0:08:15]} 10. Bb5 {[%emt 0:04:56]} Bd7 {[%emt 0:01:55]} 11. a4 {[%emt 0:03:42]} Bg7 {[%emt 0:01:38]} 12. Rd1 O-O-O {[%emt 0:14:40]} 13. Be3 {[%emt 0:03:37]} e5 {[%emt 0:06:18]} 14. Nd2 {[%emt 0:06:39]} f5 {[%emt 0:07:53]} 15. f3 {[%emt 0:01:24]} a6 {[%emt 0:03:00]} 16. Be2 {[%emt 0:02:05]} f4 {[%emt 0:03:29]} 17. Bf2 {[%emt 0:04:03]} g5 {[%emt 0:19:47]} 18. b4 Be6 19. Nc4 {[%emt 0:15:21]} Rxd1 {[%emt 0:04:37]} 20. Rxd1 {[%emt 0:00:43]} Rd8 {[%emt 0:01:37]} 21. Rb1 {[%emt 0:03:20]} b6 {[%emt 0:10:54]} 22. b5 {[%emt 0:06:03]} axb5 {[%emt 0:00:01]} 23. axb5 {[%emt 0:01:58]} Nb8 {[%emt 0:02:23]} 24. Ra1 {[%emt 0:04:52]} Kb7 {[%emt 0:00:15]} 25. Rh1 {[%emt 0:02:15]} Rh8 {[%emt 0:02:14]} 26. Rd1 {[%emt 0:03:42]} Nd7 {[%emt 0:00:28]} 27. Ra1 {[%emt 0:04:18]} Bf6 {[%emt 0:01:22]} 28. Ra6 {[%emt 0:00:54]} Nb8 {[%emt 0:00:35]} 29. hxg5 {[%emt 0:12:22]} hxg5 {[%emt 0:00:08]} 30. Ra1 {[%emt 0:01:40]} Rh2 {[%emt 0:00:02]} 31. Rg1 {[%emt 0:00:52]} g4 {[%emt 0:00:31]} 32. fxg4 {[%emt 0:00:31]} f3 {[%emt 0:01:20]} 33. Bd3 {[%emt 0:02:01]} Bxc4 {[%emt 0:01:56]} 34. Bxc4 {[%emt 0:00:05]} Be7 {[%emt 0:00:38]} 35. Kd1 fxg2 {[%emt 0:00:30]} 36. Ke2 {[%emt 0:02:09]} Rh3 {[%emt 0:00:31]} 37. Bd3 {[%emt 0:00:31]} Nd7 {[%emt 0:00:23]} 38. Rxg2 {[%emt 0:00:54]} Bg5 39. Rg3 Rh1 {[%emt 0:00:56]} 40. Rg1 {[%emt 0:00:00]} Rh3 41. Rg3 Rh1 {[%emt 0:01:19]} 42. Rg1 {[%emt 0:02:29]} Rh2 {[%emt 0:00:19]} 43. Kf3 {[%emt 0:03:02]} Nf8 {[%emt 0:01:10]} 44. Rg2 {[%emt 0:00:44]} Rh6 {[%emt 0:01:26]} 45. Bg3 {[%emt 0:00:16]} Rf6+ {[%emt 0:00:10]} 46. Ke2 {[%emt 0:01:38]} Ng6 {[%emt 0:00:02]} 47. Rf2 Bf4 {[%emt 0:00:02]} 48. Bxf4 {[%emt 0:03:53]} Nxf4+ {[%emt 0:02:15]} 49. Ke3 {[%emt 0:03:24]} Rg6 50. Rxf4 exf4+ {[%emt 0:00:33]} 51. Kxf4 {[%emt 0:00:38]} Kc8 {[%emt 0:00:26]} 52. e5 {[%emt 0:00:48]} Rg7 {[%emt 0:00:24]} 53. Bc4 {[%emt 0:01:03]} Kd7 {[%emt 0:00:09]} 54. Bd5 {[%emt 0:00:28]} Ke7 {[%emt 0:00:23]} 55. c4 {[%emt 0:00:17]} Rh7 {[%emt 0:01:29]} 56. g5 {[%emt 0:00:44]} Rh4+ {[%emt 0:02:03]} 57. Kf5 {[%emt 0:00:14]} Rh3 {[%emt 0:00:18]} 58. g6 {[%emt 0:01:26]} Rg3 {[%emt 0:00:12]} 59. Bf7 {[%emt 0:00:53]} Rg1 {[%emt 0:00:19]} 60. Ke4 {[%emt 0:02:49]} Rd1 {[%emt 0:00:52]} 61. Bg8 1/2-1/2

[Event "Polish Youth 1st League 2022"]
[Site "Lublin"]
[Date "2022.06.26"]
[Round "2.15"]
[White "Nocek, Dominik"]
[Black "Duda, Szymon"]
[Result "0-1"]
[ECO "B91"]
[WhiteElo "1657"]
[BlackElo "1707"]
[Annotator "NA RC"]
[PlyCount "56"]
[EventDate "2022.06.24"]
[EventType "team-tourn"]
[EventCountry "POL"]
[SourceTitle "playchess.com"]
[Source "ChessBase"]
[SourceQuality "1"]
[TimeControl "40/5400+30:1800+30"]

1. e4 {[%emt 0:00:03]} c5 {[%emt 0:00:06]} 2. Nf3 {[%emt 0:00:07]} d6 {[%emt 0:00:10]} 3. d4 {[%emt 0:00:20]} cxd4 {[%emt 0:00:07]} 4. Nxd4 {[%emt 0:00:15]} Nf6 {[%emt 0:00:13]} 5. Nc3 {[%emt 0:00:17]} a6 {[%emt 0:03:12]} 6. g3 {[%emt 0:01:34]} b5 {[%emt 0:03:10]} 7. Bg2 {[%emt 0:00:57]} Bb7 {[%emt 0:00:46]} 8. O-O {[%emt 0:03:57]} e6 {[%emt 0:02:26]} 9. Re1 {[%emt 0:30:10]} Qc7 {[%emt 0:04:41]} 10. a3 {[%emt 0:10:57]} Be7 {[%emt 0:01:08]} 11. Be3 {[%emt 0:01:31]} O-O {[%emt 0:00:46]} 12. h3 {[%emt 0:03:10]} Nbd7 {[%emt 0:02:13]} 13. Nb3 {[%emt 0:09:48]} Rac8 {[%emt 0:05:13]} 14. Qe2 {[%emt 0:04:55]} Ne5 {[%emt 0:18:03]} 15. Rad1 {[%emt 0:01:02]} Nc4 {[%emt 0:02:47]} 16. Bc1 {[%emt 0:00:22]} Nd7 {[%emt 0:08:19]} 17. f4 {[%emt 0:08:47]} Nxa3 {[%emt 0:08:13]} 18. bxa3 {[%emt 0:05:14]} Qxc3 {[%emt 0:00:17]} 19. Nd4 {[%emt 0:03:06]} Qxg3 {[%emt 0:16:18]} 20. Rd3 {[%emt 0:01:36]} Qh4 {[%emt 0:00:32]} 21. Kh2 {[%emt 0:04:52]} Rc4 {[%emt 0:05:02]} 22. Nf3 {[%emt 0:04:40]} Qh5 {[%emt 0:01:06]} 23. Bb2 {[%emt 0:01:17]} Bxe4 {[%emt 0:03:56]} 24. Rd4 {[%emt 0:01:53]} Rxd4 {[%emt 0:01:41]} 25. Bxd4 {[%emt 0:00:09]} d5 {[%emt 0:01:26]} 26. Qf2 {[%emt 0:01:00]} Bxf3 {[%emt 0:02:31]} 27. Bxf3 {[%emt 0:00:03]} Qh6 {[%emt 0:00:34]} 28. Qg3 {[%emt 0:01:17]} Bh4 {[%emt 0:00:51]} 0-1

[Event "Polish Youth 1st League 2022"]
[Site "Lublin"]
[Date "2022.06.26"]
[Round "2.16"]
[White "Wajda, Krzysztof"]
[Black "Kowalski, Witold"]
[Result "1/2-1/2"]
[ECO "D30"]
[WhiteElo "1494"]
[BlackElo "1613"]
[Annotator "NA RC"]
[PlyCount "86"]
[EventDate "2022.06.24"]
[EventType "team-tourn"]
[EventCountry "POL"]
[SourceTitle "playchess.com"]
[Source "ChessBase"]
[SourceQuality "1"]
[TimeControl "40/5400+30:1800+30"]

1. d4 {[%emt 0:00:02]} d5 {[%emt 0:00:06]} 2. c4 {[%emt 0:00:04]} e6 {[%emt 0:00:28]} 3. Nf3 {[%emt 0:00:20]} Nf6 {[%emt 0:00:09]} 4. e3 {[%emt 0:00:42]} Be7 {[%emt 0:01:10]} 5. Nc3 {[%emt 0:00:52]} O-O {[%emt 0:00:27]} 6. Be2 {[%emt 0:01:03]} a6 {[%emt 0:04:49]} 7. O-O {[%emt 0:05:13]} Nbd7 {[%emt 0:00:29]} 8. b3 {[%emt 0:01:25]} c5 {[%emt 0:06:41]} 9. cxd5 {[%emt 0:15:05]} exd5 {[%emt 0:00:27]} 10. Bb2 {[%emt 0:03:07]} b5 {[%emt 0:02:29]} 11. dxc5 {[%emt 0:00:23]} Nxc5 {[%emt 0:00:14]} 12. Nd4 {[%emt 0:02:11]} Qd7 {[%emt 0:06:06]} 13. Bf3 {[%emt 0:02:50]} Bb7 {[%emt 0:01:27]} 14. Rc1 {[%emt 0:04:42]} Rfd8 {[%emt 0:01:26]} 15. Rc2 {[%emt 0:10:09]} Rac8 {[%emt 0:03:06]} 16. a3 {[%emt 0:21:46]} h6 {[%emt 0:06:57]} 17. Qe2 {[%emt 0:01:59]} Rc7 {[%emt 0:12:32]} 18. Rfc1 {[%emt 0:01:16]} Rdc8 {[%emt 0:05:27]} 19. h3 {[%emt 0:02:48]} Nce4 {[%emt 0:15:12]} 20. Nxe4 {[%emt 0:06:58]} dxe4 {[%emt 0:01:14]} 21. Bg4 {[%emt 0:00:30]} Nxg4 {[%emt 0:00:50]} 22. Qxg4 {[%emt 0:02:18]} Qxg4 {[%emt 0:06:21]} 23. hxg4 {[%emt 0:00:04]} Rxc2 {[%emt 0:01:42]} 24. Rxc2 {[%emt 0:00:24]} Rxc2 {[%emt 0:00:56]} 25. Nxc2 {[%emt 0:00:05]} Kf8 {[%emt 0:03:07]} 26. Nd4 {[%emt 0:01:39]} g6 {[%emt 0:00:44]} 27. Kf1 {[%emt 0:03:36]} Ke8 {[%emt 0:00:55]} 28. Ke2 {[%emt 0:00:26]} Kd7 {[%emt 0:01:09]} 29. f4 {[%emt 0:05:12]} Kd6 {[%emt 0:01:31]} 30. Bc3 {[%emt 0:03:04]} Kd5 {[%emt 0:01:03]} 31. Nc2 {[%emt 0:03:06]} Bc8 {[%emt 0:09:23]} 32. Nb4+ {[%emt 0:00:17]} Bxb4 {[%emt 0:02:54]} 33. Bxb4 {[%emt 0:00:17]} Bxg4+ {[%emt 0:00:05]} 34. Kd2 {[%emt 0:01:04]} h5 {[%emt 0:00:46]} 35. Bc3 {[%emt 0:01:11]} Ke6 {[%emt 0:00:38]} 36. a4 {[%emt 0:00:38]} bxa4 {[%emt 0:01:05]} 37. bxa4 {[%emt 0:00:04]} f6 {[%emt 0:01:04]} 38. Ke1 {[%emt 0:00:24]} g5 {[%emt 0:00:25]} 39. g3 {[%emt 0:00:07]} h4 {[%emt 0:01:14]} 40. gxh4 {[%emt 0:00:00]} gxh4 {[%emt 0:00:00]} 41. Kf2 {[%emt 0:00:33]} Bf3 {[%emt 0:01:26]} 42. Kg1 {[%emt 0:00:13]} Bg4 {[%emt 0:21:30]} 43. Kh2 {[%emt 0:00:14]} Kd5 1/2-1/2

[Event "Polish Youth 1st League 2022"]
[Site "Lublin"]
[Date "2022.06.26"]
[Round "2.17"]
[White "Kudlak, Julia"]
[Black "Czarnecka, Lidia"]
[Result "0-1"]
[ECO "B46"]
[WhiteElo "1654"]
[BlackElo "1940"]
[Annotator "NA RC"]
[PlyCount "134"]
[EventDate "2022.06.24"]
[EventType "team-tourn"]
[EventCountry "POL"]
[SourceTitle "playchess.com"]
[Source "ChessBase"]
[SourceQuality "1"]
[TimeControl "40/5400+30:1800+30"]

1. e4 {[%emt 0:00:05]} c5 {[%emt 0:00:21]} 2. Nf3 {[%emt 0:00:15]} e6 {[%emt 0:00:39]} 3. d4 {[%emt 0:00:11]} cxd4 {[%emt 0:00:10]} 4. Nxd4 {[%emt 0:00:06]} Nc6 {[%emt 0:00:09]} 5. Nc3 {[%emt 0:00:42]} a6 {[%emt 0:00:12]} 6. Be2 {[%emt 0:01:35]} Qc7 {[%emt 0:01:35]} 7. O-O {[%emt 0:01:02]} Nf6 {[%emt 0:00:49]} 8. Be3 {[%emt 0:04:51]} Be7 {[%emt 0:02:07]} 9. Kh1 {[%emt 0:02:37]} d6 {[%emt 0:01:59]} 10. f4 {[%emt 0:03:29]} O-O {[%emt 0:01:10]} 11. Bf3 {[%emt 0:01:53]} Na5 {[%emt 0:02:39]} 12. Qe1 {[%emt 0:04:14]} Nc4 {[%emt 0:04:17]} 13. g4 {[%emt 0:05:50]} Nxe3 {[%emt 0:04:30]} 14. Qxe3 {[%emt 0:01:00]} Nd7 {[%emt 0:03:27]} 15. g5 {[%emt 0:06:02]} Qc5 {[%emt 0:03:51]} 16. Qd2 {[%emt 0:04:55]} Nb6 {[%emt 0:01:54]} 17. b3 {[%emt 0:03:25]} Bd7 {[%emt 0:08:00]} 18. Nce2 {[%emt 0:06:10]} Rfe8 {[%emt 0:12:46]} 19. Rad1 {[%emt 0:03:52]} Rad8 {[%emt 0:01:10]} 20. Ng3 {[%emt 0:04:12]} d5 {[%emt 0:03:56]} 21. e5 {[%emt 0:04:08]} g6 {[%emt 0:01:57]} 22. Bg4 {[%emt 0:06:21]} Bf8 {[%emt 0:01:50]} 23. h4 {[%emt 0:09:37]} Nc8 {[%emt 0:01:17]} 24. f5 {[%emt 0:04:36]} exf5 {[%emt 0:07:03]} 25. Bxf5 {[%emt 0:04:15]} Rxe5 {[%emt 0:08:37]} 26. Qf4 {[%emt 0:02:36]} Qe7 {[%emt 0:03:55]} 27. Bd3 {[%emt 0:02:45]} Nd6 {[%emt 0:01:10]} 28. Nf3 {[%emt 0:00:25]} Re6 {[%emt 0:00:16]} 29. h5 {[%emt 0:00:49]} Ne4 {[%emt 0:02:07]} 30. hxg6 {[%emt 0:03:33]} Nxg3+ {[%emt 0:02:01]} 31. Qxg3 {[%emt 0:00:08]} fxg6 {[%emt 0:01:10]} 32. Rd2 {[%emt 0:02:15]} Bg7 {[%emt 0:01:53]} 33. Rdf2 {[%emt 0:03:10]} Bc6 {[%emt 0:02:53]} 34. Kh2 {[%emt 0:01:13]} b5 {[%emt 0:02:00]} 35. Qh4 {[%emt 0:01:02]} d4 {[%emt 0:01:57]} 36. Kg1 {[%emt 0:01:42]} Bxf3 {[%emt 0:06:59]} 37. Rxf3 {[%emt 0:00:02]} Re5 {[%emt 0:00:06]} 38. Rg3 {[%emt 0:00:58]} Rdd5 {[%emt 0:00:44]} 39. Rff3 {[%emt 0:03:00]} Rxg5 {[%emt 0:00:39]} 40. Kf2 {[%emt 0:00:00]} Qe5 {[%emt 0:00:00]} 41. Qh3 {[%emt 0:08:56]} Qe8 {[%emt 0:07:10]} 42. a4 {[%emt 0:03:36]} Rxg3 {[%emt 0:05:44]} 43. Qxg3 {[%emt 0:00:22]} Re5 {[%emt 0:06:17]} 44. axb5 {[%emt 0:01:51]} axb5 {[%emt 0:00:11]} 45. Qf4 {[%emt 0:03:29]} Qe7 {[%emt 0:03:00]} 46. Qg4 {[%emt 0:01:36]} Rc5 {[%emt 0:01:33]} 47. Kf1 {[%emt 0:03:17]} Qe8 {[%emt 0:01:55]} 48. Qf4 {[%emt 0:02:43]} Re5 {[%emt 0:00:24]} 49. Qd2 {[%emt 0:02:28]} Rh5 {[%emt 0:01:28]} 50. Qa5 {[%emt 0:01:45]} Bh6 {[%emt 0:02:22]} 51. Qb4 {[%emt 0:03:25]} Be3 {[%emt 0:01:48]} 52. Qd6 {[%emt 0:01:28]} Rg5 {[%emt 0:00:57]} 53. Qh2 {[%emt 0:01:16]} Qa8 {[%emt 0:02:28]} 54. Ke2 {[%emt 0:00:39]} Qe8 {[%emt 0:00:48]} 55. Qh3 {[%emt 0:01:05]} Rg1 {[%emt 0:01:47]} 56. Rf1 {[%emt 0:00:09]} Rg5 {[%emt 0:01:10]} 57. Kd1 {[%emt 0:00:25]} Re5 {[%emt 0:00:23]} 58. Qf3 {[%emt 0:00:38]} Qe7 {[%emt 0:01:04]} 59. Qa8+ {[%emt 0:00:43]} Kg7 {[%emt 0:00:09]} 60. Qa5 {[%emt 0:00:39]} Qd7 {[%emt 0:02:07]} 61. Qb4 {[%emt 0:00:18]} Re7 {[%emt 0:02:32]} 62. Bxb5 {[%emt 0:00:54]} Qa7 {[%emt 0:00:33]} 63. Ba4 {[%emt 0:00:33]} h5 {[%emt 0:00:43]} 64. Qd6 {[%emt 0:00:22]} Qc7 {[%emt 0:00:41]} 65. Qf6+ {[%emt 0:00:35]} Kh7 {[%emt 0:00:05]} 66. Bc6 {[%emt 0:00:34]} Rg7 {[%emt 0:00:30]} 67. Qe6 {[%emt 0:00:37]} Qh2 {[%emt 0:00:25]} 0-1

[Event "Polish Youth 1st League 2022"]
[Site "Lublin"]
[Date "2022.06.26"]
[Round "2.18"]
[White "Slusarczyk, Anna"]
[Black "Dzierzgowska, Jagoda"]
[Result "1-0"]
[ECO "D26"]
[WhiteElo "1544"]
[BlackElo "1267"]
[Annotator "NA RC"]
[PlyCount "61"]
[EventDate "2022.06.24"]
[EventType "team-tourn"]
[EventCountry "POL"]
[SourceTitle "playchess.com"]
[Source "ChessBase"]
[SourceQuality "1"]
[TimeControl "40/5400+30:1800+30"]

1. d4 {[%emt 0:00:02]} d5 {[%emt 0:00:08]} 2. Nf3 {[%emt 0:00:04]} Nf6 {[%emt 0:00:05]} 3. c4 {[%emt 0:00:08]} dxc4 {[%emt 0:00:52]} 4. e3 {[%emt 0:00:11]} e6 {[%emt 0:00:58]} 5. Bxc4 {[%emt 0:00:46]} c5 {[%emt 0:00:35]} 6. Nc3 {[%emt 0:01:26]} a6 {[%emt 0:01:04]} 7. a4 {[%emt 0:08:07]} Nc6 {[%emt 0:07:38]} 8. O-O {[%emt 0:01:47]} Nb4 {[%emt 0:01:39]} 9. Ne5 {[%emt 0:02:35]} Bd6 {[%emt 0:23:53]} 10. f4 {[%emt 0:02:25]} O-O {[%emt 0:01:14]} 11. Rf3 {[%emt 0:07:06]} cxd4 {[%emt 0:06:27]} 12. exd4 {[%emt 0:03:22]} Qb6 {[%emt 0:14:11]} 13. a5 {[%emt 0:03:28]} Qc7 {[%emt 0:03:25]} 14. Rh3 {[%emt 0:06:42]} b6 {[%emt 0:02:29]} 15. Bb3 {[%emt 0:19:23]} Bb7 16. g4 {[%emt 0:03:06]} Nfd5 {[%emt 0:13:12]} 17. g5 {[%emt 0:04:01]} g6 {[%emt 0:02:29]} 18. Qg4 {[%emt 0:02:36]} Qe7 {[%emt 0:03:11]} 19. Ne4 {[%emt 0:01:20]} f5 {[%emt 0:04:59]} 20. gxf6 {[%emt 0:00:11]} Nxf6 {[%emt 0:00:27]} 21. Bxe6+ {[%emt 0:04:47]} Kg7 {[%emt 0:01:43]} 22. Nxf6 {[%emt 0:01:22]} Rxf6 {[%emt 0:01:30]} 23. f5 {[%emt 0:00:20]} Bxe5 {[%emt 0:01:52]} 24. dxe5 {[%emt 0:00:43]} Rxe6 {[%emt 0:03:23]} 25. f6+ {[%emt 0:03:03]} Rxf6 {[%emt 0:00:10]} 26. exf6+ {[%emt 0:00:02]} Qxf6 {[%emt 0:00:11]} 27. Qxb4 {[%emt 0:00:07]} Qe6 {[%emt 0:01:21]} 28. Re3 {[%emt 0:01:00]} Qd5 {[%emt 0:00:48]} 29. Qe7+ {[%emt 0:00:57]} Kg8 {[%emt 0:00:16]} 30. Qe6+ {[%emt 0:00:05]} Qxe6 {[%emt 0:00:07]} 31. Rxe6 {[%emt 0:00:02]} 1-0

[Event "Polish Youth 1st League 2022"]
[Site "Lublin"]
[Date "2022.06.26"]
[Round "2.19"]
[White "Luczak, Filip"]
[Black "Jedraszek, Pawel"]
[Result "1-0"]
[ECO "B09"]
[WhiteElo "2311"]
[BlackElo "1933"]
[Annotator "TA"]
[PlyCount "79"]
[EventDate "2022.06.24"]
[EventType "team-tourn"]
[EventCountry "POL"]
[SourceTitle "playchess.com"]
[Source "ChessBase"]
[SourceQuality "1"]
[TimeControl "40/5400+30:1800+30"]

{[%evp 17,79,10,20,-6,35,13,53,47,79,79,79,79,81,73,73,73,80,91,86,85,89,56,56,20,39,29,27,29,37,21,64,67,56,18,26,34,56,55,64,46,91,94,109,110,102,76,317,310,908,892,997,984,958,693,696,696,683,691,691,691,682,659,587,572]} 1. Nc3 {[%emt 0:00:02]} Nf6 {[%emt 0:01:46]} 2. e4 {[%emt 0:03:20]} d6 {[%emt 0:02:54]} 3. d4 {[%emt 0:01:50]} g6 {[%emt 0:01:49]} 4. f4 {[%emt 0:01:01]} Bg7 {[%emt 0:00:38]} 5. Nf3 {[%emt 0:00:05]} O-O {[%emt 0:00:39]} 6. Be2 {[%emt 0:02:27]} c5 {[%emt 0:01:47]} 7. dxc5 {[%emt 0:00:21]} Qa5 {[%emt 0:04:07]} 8. O-O {[%emt 0:00:11]} Qxc5+ {[%emt 0:00:11]} 9. Kh1 {[%emt 0:00:04]} Nc6 {[%emt 0:02:43]} 10. a3 {[%emt 0:05:06] B09: Pirc Defence: Austrian Attack.} Bg4 {[%emt 0:06:56][%cal Od6d5]} (10... Ng4 $5 {[%cal Rg7c3]}) 11. Qd3 {[%emt 0:03:31]} Bxf3 {[%emt 0:07:39]} 12. Bxf3 {[%emt 0:03:29] [#] White is slightly better.} a6 $146 {[%emt 0:00:27]} ({Predecessor:} 12... e6 13. Be3 Qa5 14. Rad1 d5 15. e5 Nd7 16. Nb5 a6 17. b4 Qd8 18. Nd6 Ndxe5 19. fxe5 Nxe5 20. Nxb7 {0-1 (44) Janosko,R-Novak,I (2345) Bratislava 1998}) 13. Be3 {[%emt 0:02:42]} Qa5 {[%emt 0:00:11]} 14. Nd5 {[%emt 0:03:46]} Nxd5 {[%emt 0:02:55]} 15. exd5 {[%emt 0:00:14]} Nb8 {[%emt 0:00:10]} 16. b4 {[%emt 0:02:05]} Qc7 {[%emt 0:00:57]} 17. Rac1 {[%emt 0:05:09] White is more active.} Nd7 {[%emt 0:08:52]} 18. c4 {[%emt 0:01:01]} b6 {[%emt 0:00:22] Inhibits c5.} 19. Rfe1 {[%emt 0:04:33]} a5 {[%emt 0:05:35]} 20. Re2 {[%emt 0:07:18]} axb4 {[%emt 0:00:54]} 21. axb4 {[%emt 0:00:01]} Ra4 {[%emt 0:05:19]} 22. Bd2 {[%emt 0:01:40]} Re8 {[%emt 0:07:11]} 23. Rce1 {[%emt 0:07:01]} Ra1 {[%emt 0:02:24]} 24. Rxa1 {[%emt 0:01:31]} Bxa1 {[%emt 0:00:05]} 25. Qa3 {[%emt 0:00:42]} Bg7 {[%emt 0:03:26]} 26. Qa4 {[%emt 0:02:42]} Kf8 {[%emt 0:03:00]} 27. Be3 {[%emt 0:03:02]} Rc8 {[%emt 0:03:57]} 28. h3 {[%emt 0:04:03]} Qb7 {[%emt 0:05:39]} 29. Ra2 {[%emt 0:07:12][%cal Oa4c6]} f5 {[%emt 0:02:23]} (29... Rxc4 $2 30. Qc6 $3 {[%mdl 512]} Rxc6 31. dxc6 $18) 30. Qb5 {[%emt 0:02:22][%cal Oc4c5] aiming for c5!} Qc7 {[%emt 0:02:21] Against c5} 31. Qc6 {[%emt 0:01:23]} Qd8 $2 {[%emt 0:02:22] [#] This costs Black the game.} (31... Bc3 $16) 32. Ra7 $1 $18 {[%emt 0:03:50]} ({Not} 32. Qb5 Qc7 33. Be2 Rb8 $16) 32... Rxc6 $2 {[%emt 0:09:33]} (32... Nf6) 33. dxc6 {[%emt 0:00:03] White is clearly winning.} Nb8 {[%emt 0:00:08]} 34. c7 {[%emt 0:00:11]} Qc8 {[%emt 0:00:13]} 35. cxb8=Q {[%emt 0:00:07]} Qxb8 {[%emt 0:00:09]} 36. Ra8 {[%emt 0:00:03]} Qxa8 {[%emt 0:00:15]} 37. Bxa8 {[%emt 0:00:03]} Bc3 {[%emt 0:00:20]} 38. b5 {[%emt 0:00:16]} Ba5 {[%emt 0:00:11]} 39. Bd5 {[%emt 0:00:15]} h6 {[%emt 0:04:55]} 40. Be6 {[%emt 0:00:00] Weighted Error Value: White=0.18 (very precise) /Black=0.30} 1-0